Entity ,Pay date,Expense Type(T),Expense Area(T),Supplier(T),Transaction Number,Amount,Description
NS&I,21/04/2021,Unitary fee - Outsource partner,Commercial and Legal,Atos IT Services UK Ltd,4018406,"4,782,529.38",Unitary service charge -April 2021
NS&I,28/04/2021,Unitary fee - Outsource partner,Commercial and Legal,Atos IT Services UK Ltd,4018409,"3,000,000.00",Unitary service charge - March 2021
NS&I,14/04/2021,Demand-linked costs - Outsource partner,Delivery & Monitoring,Atos IT Services UK Ltd,4018412,"2,590,110.00",Demand link service charge- March 2021
NS&I,14/04/2021,Maintenance and running costs - Outsource partner,Finance,Atos IT Services UK Ltd,4018389,"750,506.90",Secondments Payment
NS&I,14/04/2021,Project costs - Outsource partner,Programme Delivery,Atos IT Services UK Ltd,4018397,"662,815.00",System enhancements and licences
NS&I,28/04/2021,Unitary fee - Outsource partner,B2B Government Payment Services,Atos IT Services UK Ltd,4018481,"649,631.19",Help to save service charges - April 2021
NS&I,21/04/2021,Professional services - Legal,Commercial and Legal,PA Consulting Services Ltd,4018387,"407,895.11",Strategic business advice and support
NS&I,28/04/2021,Unitary fee - Outsource partner,B2B Government Payment Services,Atos IT Services UK Ltd,4018486,"323,755.00",Help to buy service charges - April 2021
NS&I,14/04/2021,Unitary fee - Outsource partner,B2B Government Payment Services,Atos IT Services UK Ltd,4018297,"246,055.29",Tax-free childcare service charges February 2021
NS&I,14/04/2021,Unitary fee - Outsource partner,B2B Government Payment Services,Atos IT Services UK Ltd,4018298,"220,876.42",Help to save service charges - February 2021
NS&I,07/04/2021,Project costs - Outsource partner,Programme Delivery,Atos IT Services UK Ltd,4018376,"127,932.00",Enhancing delivery channels
NS&I,21/04/2021,Unitary fee - Outsource partner,B2B Government Payment Services,Atos IT Services UK Ltd,4018383,"121,332.03",Court Funds Office Service Charges  February and March 2021
NS&I,21/04/2021,Product account bank charges,Finance,RBSG NS&I Charges A/c,4018288,"110,861.90",RBS Quarterly Bank Charges December 2020 - February 2021
NS&I,28/04/2021,Unitary fee - Outsource partner,B2B Government Payment Services,Atos IT Services UK Ltd,4018435,"92,564.64",Help to buy service charges - April 2021
NS&I,21/04/2021,Product account bank charges,Finance,HMRC (Government Banking Service),4018437,"75,000.00",HMRC GBS Management Fees
NS&I,21/04/2021,Contract staff (Non-payroll),Commercial and Legal,Bloom Procurement Services Limited,4018425,"71,820.00",Enhancing delivery channels
NS&I,28/04/2021,Professional services - Other,Operational Assurance,HMRC (Government Banking Service),4018484,"68,511.97",HMRC Government Banking Service Management Fees
NS&I,07/04/2021,Project costs - Outsource partner,Programme Delivery,Atos IT Services UK Ltd,4018345,"65,000.00",Data warehouse development work
NS&I,21/04/2021,Advertising agency costs,Marketing Communications,Starcom WW Ltd,4018441,"64,944.00",Cost of Marketing Campaigns
NS&I,07/04/2021,Project costs - Outsource partner,Programme Delivery,Atos IT Services UK Ltd,4018395,"62,953.00",Customer journey improvements
NS&I,21/04/2021,Professional services - Projects,Programme Delivery,Equiniti Limited,4018426,"59,990.04",Data maintenance and enhancement
NS&I,07/04/2021,Direct marketing,Marketing Communications,Unlimited Group United Ltd,4018369,"59,764.87",Cost of Marketing Campaigns
NS&I,28/04/2021,Professional services - Legal,Commercial and Legal,Bevan Brittan LLP,4018482,"54,000.00",Legal services 
NS&I,07/04/2021,Direct marketing,Marketing Communications,Unlimited Group United Ltd,4018357,"52,743.96",Cost of Marketing Campaigns
NS&I,07/04/2021,Professional services - Other,Complaints Managment,Financial Ombudsman Services,4018402,"50,700.00",Case Fee Charges April 2021
NS&I,07/04/2021,Advertising and production,Marketing Communications,Unlimited Group United Ltd,4018352,"50,196.73",Cost of Marketing Campaigns
NS&I,07/04/2021,Direct marketing,Marketing Communications,Unlimited Group United Ltd,4018366,"49,424.83",Qualitative & quantitative research
NS&I,07/04/2021,Market research,Market Intelligence & Research,Discovery Research Ltd.,4018301,"44,400.00",Qualitative & quantitative research
NS&I,07/04/2021,Business intelligence and analysis,Market Intelligence & Research,Eleven FS Group Ltd,4018295,"40,000.00",Market benchmarking research credits
NS&I,14/04/2021,Business intelligence and analysis,Business Insight,CACI Ltd,4018416,"39,578.40",External Data Variables
NS&I,01/04/2021,Product account bank charges,Finance,RBSG NS&I Charges A/c,4018167,"36,000.00",NatWest support for implementation of Confirmation of Payee
NS&I,28/04/2021,Web hosting,Media Relations,The Team Brand Communications Ltd,4018483,"35,848.80",Website Hosting and Maintenance
NS&I,07/04/2021,Project costs - Outsource partner,Programme Delivery,Atos IT Services UK Ltd,4018338,"31,802.00",Enhancements to Premium Bond Prize Checker App
NS&I,07/04/2021,Project costs - Outsource partner,Programme Delivery,Atos IT Services UK Ltd,4018346,"31,802.00",Enhancements to Premium Bond Prize Checker App
NS&I,07/04/2021,Direct marketing,Marketing Communications,Unlimited Group United Ltd,4018358,"30,096.97",Cost of Marketing Campaigns
NS&I,07/04/2021,Advertising and production,Marketing Communications,Unlimited Group United Ltd,4018356,"30,096.97",Cost of Marketing Campaigns
NS&I,07/04/2021,Advertising agency costs,Marketing Communications,Unlimited Group United Ltd,4018373,"27,216.00",Cost of Marketing Campaigns
NS&I,14/04/2021,5584360876,Finance,Atos IT Services UK Ltd,4018390,"-625,422.42",Secondments VAT Correction
